fUSD/lending_fUSD_20250806
["ID","MTS","AMOUNT","RATE_DAILY","PERIOD"]
[377600315,1754448858183,-478.37,0.00039452,14]
[377600316,1754448858193,-1455.59,0.00039452,14]
[377600317,1754448858203,-400.0,0.00039452,14]
[377600318,1754448858211,-1137.51,0.00039452,14]
[377600319,1754448858220,-1494.66,0.00039452,14]
[377600320,1754448858230,-2002.12,0.00039452,14]
[377600321,1754448858239,-400.0,0.00039452,14]
[377600322,1754448858249,-1040.39,0.00039452,14]
[377600323,1754448858258,-400.0,0.00039452,14]
[377600324,1754448858269,-400.0,0.00039452,14]
[377600325,1754448858293,-500.0,0.00039452,14]
[377600326,1754448858303,-662.16,0.00039452,14]
[377600327,1754448858313,-400.0,0.00039452,14]
[377600328,1754448858322,-2153.57,0.00039452,14]
[377600329,1754448858331,-1355.9,0.00039452,14]
[377600330,1754448858340,-459.79677114,0.00039452,14]
[377600331,1754448858350,-904.68,0.00039452,14]
[377600332,1754448858360,-400.0,0.00039452,14]
[377600333,1754448858370,-545.31,0.00039452,14]
[377600334,1754448858379,-400.0,0.00039452,14]
[377600335,1754448858388,-400.0,0.00039452,14]
[377600336,1754448858398,-400.0,0.00039452,14]
[377600337,1754448858409,-1848.23,0.00039452,14]
[377600338,1754448858418,-837.58,0.00039452,14]
[377600339,1754448858427,-400.0,0.00039452,14]
[377600340,1754448858437,-400.0,0.00039452,14]
[377600341,1754448858446,-426.53,0.00039452,14]
[377600342,1754448858455,-2053.66,0.00039452,14]
[377600343,1754448858470,-463.84,0.00039452,14]
[377600344,1754448858479,-1680.73,0.00039452,14]
[377600345,1754448858488,-400.0,0.00039452,14]
[377600346,1754448858497,-589.79,0.00039452,14]
[377600347,1754448858507,-1174.99,0.00039452,14]
[377600348,1754448858516,-485.82,0.00039452,14]
[377600349,1754448858525,-1560.83,0.00039452,14]
[377600350,1754448858534,-1343.09,0.00039452,14]
[377600351,1754448858543,-400.0,0.00039452,14]
[377600352,1754448858552,-356.01565674,0.00039452,14]
[377600353,1754448858561,-652.79,0.00039452,14]
[377600354,1754448858570,-807.49,0.00039452,14]
[377600355,1754448858578,-2272.01,0.00039452,14]
[377600356,1754448858587,-439.11,0.00039452,14]
[377600357,1754448858596,-400.0,0.00039452,14]
[377600358,1754448858606,-1269.54,0.00039452,14]
[377600359,1754448858615,-400.0,0.00039452,14]
[377600360,1754448858627,-1601.77,0.00039452,14]
[377600361,1754448858636,-400.0,0.00039452,14]
[377600362,1754448858645,-549.88,0.00039452,14]
[377600363,1754448858656,-691.52,0.00039452,14]
[377600364,1754448858665,-937.63,0.00039452,14]
[377600365,1754448858674,-1238.53,0.00039452,14]
[377600366,1754448858683,-842.35,0.00039452,14]
[377600367,1754448858692,-758.93,0.00039452,14]
[377600368,1754448858701,-566.9,0.00039452,14]
[377600369,1754448858710,-1884.93,0.00039452,14]
[377600370,1754448858719,-1051.66,0.00039452,14]
[377600371,1754448858728,-1133.77,0.00039452,14]
[377600372,1754448858738,-1340.96,0.00039452,14]
[377600373,1754448858748,-1269.95,0.00039452,14]
[377600374,1754448858758,-1245.02,0.00039452,14]
[377600375,1754448858767,-400.0,0.00039452,14]
[377600376,1754448858776,-400.0,0.00039452,14]
[377600377,1754448858786,-400.0,0.00039452,14]
[377600378,1754448858796,-1135.75,0.00039452,14]
[377600379,1754448858806,-400.96,0.00039452,14]
[377600380,1754448858816,-888.4,0.00039452,14]
[377600381,1754448858826,-1391.51,0.00039452,14]
[377600382,1754448858836,-885.84,0.00039452,14]
[377600383,1754448858845,-154.71120231,0.00039452,14]
[377600384,1754448858854,-1485.63,0.00039452,14]
[377600385,1754448858863,-577.94,0.00039452,14]
[377600386,1754448858872,-400.0,0.00039452,14]
[377600387,1754448858882,-2205.6,0.00039452,14]
[377600388,1754448858892,-594.52,0.00039452,14]
[377600389,1754448858901,-516.69,0.00039452,14]
[377600390,1754448858912,-400.99,0.00039452,14]
[377600391,1754448858922,-798.43,0.00039452,14]
[377600392,1754448858931,-963.31,0.00039452,14]
[377600393,1754448858940,-825.61,0.00039452,14]
[377600394,1754448858951,-1955.89,0.00039452,14]
[377600395,1754448858960,-425.14,0.00039452,14]
[377600396,1754448858969,-872.75,0.00039452,14]
[377600397,1754448858978,-672.46,0.00039452,14]
[377600398,1754448858987,-400.0,0.00039452,7]
[377600399,1754448858997,-2048.4,0.00039452,14]
[377600400,1754448859006,-666.07,0.00039452,14]
[377600401,1754448859016,-1186.37,0.00039452,14]
[377600402,1754448859025,-1867.25,0.00039452,14]
[377600403,1754448859034,-400.0,0.00039452,14]
[377600404,1754448859043,-1486.37,0.00039452,14]
[377600405,1754448859053,-1282.75,0.00039452,14]
[377600406,1754448859062,-420.69254152,0.00039452,14]
[377600407,1754448859071,-620.41,0.00039452,14]
[377600408,1754448859081,-426.54,0.00039452,14]
[377600409,1754448859090,-546.47,0.00039452,14]
[377600410,1754448859100,-1685.19,0.00039452,14]
[377600411,1754448859109,-1042.07,0.00039452,14]
[377600412,1754448859119,-607.47,0.00039452,14]
[377600413,1754448859128,-400.0,0.00039452,14]
[377600414,1754448859138,-1387.34,0.00039452,14]
[377600415,1754448859147,-1608.62,0.00039452,14]
[377600416,1754448859156,-1266.36,0.00039452,14]
[377600417,1754448859165,-640.46,0.00039452,14]
[377600418,1754448859175,-1198.83,0.00039452,14]
[377600419,1754448859186,-850.06,0.00039452,14]
[377600420,1754448859196,-1040.96,0.00039452,14]
[377600421,1754448859205,-360.88558557,0.00039452,14]
[377600422,1754448859214,-2213.68,0.00039452,14]
[377600423,1754448859224,-627.73,0.00039452,14]
[377600424,1754448859233,-488.01430745,0.00039452,14]
[377600425,1754448859242,-400.0,0.00039452,14]
[377600426,1754448859251,-471.56,0.00039452,14]
[377600427,1754448859260,-511.19,0.00039452,14]
[377600428,1754448859269,-400.0,0.00039452,14]
[377600429,1754448859279,-440.85,0.00039452,14]
[377600430,1754448859288,-860.58,0.00039452,14]
[377600431,1754448859297,-1113.65,0.00039452,14]
[377600432,1754448859306,-985.67,0.00039452,14]
[377600433,1754448859315,-400.0,0.00039452,14]
[377600434,1754448859324,-523.26,0.00039452,14]
[377600435,1754448859334,-531.05,0.00039452,14]
[377600436,1754448859342,-400.0,0.00039452,14]
[377600437,1754448859351,-1788.17,0.00039452,14]
[377600438,1754448859359,-1913.41,0.00039452,14]
[377600439,1754448859368,-1243.8,0.00039452,14]
[377600440,1754448859377,-400.0,0.00039452,14]
[377600441,1754448859386,-2195.18,0.00039452,14]
[377600442,1754448859394,-400.0,0.00039452,14]
[377600443,1754448859404,-400.0,0.00039452,14]
[377600444,1754448859413,-400.0,0.00039452,14]
[377600445,1754448859422,-973.74,0.00039452,14]
[377600446,1754448859430,-291.3586725,0.00039452,14]
[377600447,1754448859439,-400.0,0.00039452,14]
[377600448,1754448859448,-511.74,0.00039452,14]
[377600449,1754448859457,-1927.1,0.00039452,14]
[377600450,1754448859466,-1421.29,0.00039452,14]
[377600451,1754448859474,-880.55,0.00039452,14]
[377600452,1754448859483,-1559.95,0.00039452,14]
[377600453,1754448859492,-1237.93,0.00039452,14]
[377600454,1754448859501,-764.11,0.00039452,14]
[377600455,1754448859510,-832.23,0.00039452,14]
[377600456,1754448859519,-1200.18,0.00039452,14]
[377600457,1754448859527,-982.62,0.00039452,14]
[377600458,1754448859536,-851.23,0.00039452,14]
[377600459,1754448859545,-483.16,0.00039452,14]
[377600460,1754448859555,-1009.21,0.00039452,14]
[377600461,1754448859563,-400.0,0.00039452,14]
[377600462,1754448859573,-1056.91,0.00039452,14]
[377600463,1754448859581,-454.78,0.00039452,14]
[377600464,1754448859590,-1461.35,0.00039452,14]
[377600465,1754448859599,-400.0,0.00039452,14]
[377600466,1754448859607,-519.19,0.00039452,14]
[377600467,1754448859616,-1050.13,0.00039452,14]
[377600468,1754448859626,-1907.53,0.00039452,14]
[377600469,1754448859635,-1615.6,0.00039452,14]
[377600470,1754448859645,-400.0,0.00039452,14]
[377600471,1754448859657,-1550.81,0.00039452,14]
[377600472,1754448859666,-326.31955425,0.00039452,14]
[377600473,1754448859675,-1830.1,0.00039452,14]
[377600474,1754448859684,-802.15,0.00039452,14]
[377600475,1754448859693,-1088.04,0.00039452,14]
[377600476,1754448859702,-417.37,0.00039452,14]
[377600477,1754448859712,-1532.37,0.00039452,14]
[377600478,1754448859721,-3675.96,0.00039452,14]
[377600479,1754448859730,-498.81,0.00039452,14]
[377600480,1754448859740,-675.67,0.00039452,14]
[377600481,1754448859748,-1930.27,0.00039452,14]
[377600482,1754448859757,-477.88,0.00039452,14]
[377600483,1754448859766,-1895.26,0.00039452,14]
[377600484,1754448859775,-2398.75,0.00039452,14]
[377600485,1754448859784,-693.8,0.00039452,14]
[377600486,1754448859794,-1056.68,0.00039452,14]
[377600487,1754448859802,-400.0,0.00039452,14]
[377600488,1754448859812,-400.0,0.00039452,14]
[377600489,1754448859821,-1000.88,0.00039452,14]
[377600490,1754448859830,-694.7,0.00039452,14]
[377600491,1754448859839,-480.98487232,0.00039452,14]
[377600492,1754448859848,-400.0,0.00039452,14]
[377600493,1754448859856,-1317.27,0.00039452,14]
[377600494,1754448859865,-1087.98,0.00039452,14]
[377600495,1754448859874,-1841.73,0.00039452,14]
[377600496,1754448859883,-432.07,0.00039452,14]
[377600497,1754448859892,-660.48,0.00039452,14]
[377600498,1754448859902,-216.66215741,0.00039452,14]
[377600499,1754448859914,-1706.66,0.00039452,14]
[377600500,1754448859923,-400.0,0.00039452,14]
[377600501,1754448859932,-2115.6,0.00039452,14]
[377600502,1754448859941,-2048.1,0.00039452,14]
[377600503,1754448859950,-400.0,0.00039452,14]
[377600504,1754448859960,-890.38,0.00039452,14]
[377600505,1754448859969,-763.76,0.00039452,14]
[377600506,1754448859979,-262.68319736,0.00039452,14]
[377600507,1754448859989,-261.4,0.00039452,14]
[377600508,1754448859998,-554.46,0.00039452,14]
[377600509,1754448860008,-3061.86,0.00039452,14]
[377600510,1754448860017,-572.41,0.00039452,14]
[377600511,1754448860026,-1869.25,0.00039452,14]
[377600512,1754448860035,-1241.1,0.00039452,14]
[377600513,1754448860044,-1742.73,0.00039452,14]
[377600514,1754448860054,-400.0,0.00039452,14]
[377600515,1754448860062,-1978.5,0.00039452,14]
[377600516,1754448860071,-589.98,0.00039452,14]
[377600517,1754448860080,-1056.28,0.00039452,14]
[377600518,1754448860089,-1789.45,0.00039452,14]
[377600519,1754448860098,-400.0,0.00039452,14]
[377600520,1754448860107,-3264.35,0.00039452,14]
[377600521,1754448860116,-719.58,0.00039452,14]
[377600522,1754448860126,-1335.74,0.00039452,14]
[377600523,1754448860135,-1301.62,0.00039452,14]
[377600524,1754448860144,-1906.92,0.00039452,14]
[377600525,1754448860153,-2206.71,0.00039452,14]
[377600526,1754448860163,-493.26,0.00039452,14]
[377600527,1754448860172,-160.72362553,0.00039452,14]
[377600528,1754448860182,-400.0,0.00039452,14]
[377600529,1754448860192,-451.74,0.00039452,14]
[377600530,1754448860202,-240.0,0.00039452,14]
[377600531,1754448860211,-1276.43,0.00039452,14]
[377600532,1754448860221,-986.68,0.00039452,14]
[377600533,1754448860230,-947.42,0.00039452,14]
[377600534,1754448860239,-2195.08,0.00039452,14]
[377600535,1754448860248,-1464.57,0.00039452,14]
[377600536,1754448860257,-2197.84,0.00039452,14]
[377600537,1754448860266,-804.15,0.00039452,14]
[377600538,1754448860276,-802.3,0.00039452,14]
[377600539,1754448860285,-400.0,0.00039452,14]
[377600540,1754448860294,-820.58,0.00039452,14]
[377600541,1754448860303,-684.16,0.00039452,14]
[377600542,1754448860312,-400.0,0.00039452,14]
[377600543,1754448860321,-611.45,0.00039452,14]
[377600544,1754448860331,-744.31,0.00039452,14]
[377600545,1754448860340,-1536.69,0.00039452,14]
[377600546,1754448860349,-2158.92,0.00039452,14]
[377600547,1754448860359,-479.40112093,0.00039452,14]
[377600548,1754448860367,-461.52,0.00039452,14]
[377600549,1754448860376,-400.0,0.00039452,14]
[377600550,1754448860386,-545.58,0.00039452,14]
[377600551,1754448860395,-300.0,0.00039452,14]
[377600552,1754448860405,-521.67,0.00039452,14]
[377600553,1754448860414,-850.08,0.00039452,14]
[377600554,1754448860423,-1521.24,0.00039452,14]
[377600555,1754448860432,-1086.81,0.00039452,14]
[377600556,1754448860441,-2094.08,0.00039452,14]
[377600557,1754448860450,-1148.89,0.00039452,14]
[377600558,1754448860459,-647.61,0.00039452,14]
[377600559,1754448860469,-1804.32,0.00039452,14]
[377600560,1754448860478,-688.12,0.00039452,14]
[377600561,1754448860487,-575.0,0.00039452,14]
[377600562,1754448860496,-460.78,0.00039452,14]
[377600563,1754448860505,-1509.88,0.00039452,14]
[377600564,1754448860514,-400.0,0.00039452,14]
[377600565,1754448860523,-400.0,0.00039452,14]
[377600566,1754448860532,-1836.14,0.00039452,14]
[377600567,1754448860541,-449.13,0.00039452,14]
[377600568,1754448860551,-1622.09,0.00039452,14]
[377600569,1754448860559,-2961.28,0.00039452,14]
[377600570,1754448860569,-1032.0,0.00039452,14]
[377600571,1754448860578,-878.8,0.00039452,14]
[377600572,1754448860586,-1829.37,0.00039452,14]
[377600573,1754448860596,-2880.34,0.00039452,14]
[377600574,1754448860605,-1462.8,0.00039452,14]
[377600575,1754448860614,-3418.23,0.00039452,14]
[377600576,1754448860623,-1158.06,0.00039452,14]
[377600577,1754448860632,-314.18265166,0.00039452,14]
[377600578,1754448860641,-1563.04,0.00039452,14]
[377600579,1754448860650,-774.95,0.00039452,14]
[377600580,1754448860660,-400.0,0.00039452,14]
[377600581,1754448860668,-650.36,0.00039452,14]
[377600582,1754448860678,-1923.25,0.00039452,14]
[377600583,1754448860819,-2020.14,0.00039452,14]
[377600584,1754448860829,-2285.89,0.00039452,14]
[377600585,1754448860838,-3412.85,0.00039452,14]
[377600586,1754448860847,-444.68,0.00039452,14]
[377600587,1754448860856,-400.0,0.00039452,14]
[377600588,1754448860865,-492.68812245,0.00039452,14]
[377600589,1754448860874,-1704.34,0.00039452,14]
[377600590,1754448860883,-981.32,0.00039452,14]
[377600591,1754448860892,-422.51,0.00039452,14]
[377600592,1754448860901,-1217.8,0.00039452,14]
[377600593,1754448860915,-400.0,0.00039452,14]
[377600594,1754448860924,-719.56,0.00039452,14]
[377600595,1754448860933,-426.16,0.00039452,14]
[377600596,1754448860942,-2049.87,0.00039452,14]
[377600597,1754448860951,-2284.92,0.00039452,14]
[377600598,1754448860961,-400.0,0.00039452,14]
[377600599,1754448860970,-1324.35,0.00039452,14]
[377600600,1754448860979,-516.05921364,0.00039452,14]
[377600601,1754448860989,-400.0,0.00039452,14]
[377600602,1754448860999,-400.0,0.00039452,14]
[377600603,1754448861009,-536.81,0.00039452,14]
[377600604,1754448861018,-1978.73,0.00039452,14]
[377600605,1754448861027,-2066.75,0.00039452,14]
[377600606,1754448861037,-400.0,0.00039452,14]
[377600607,1754448861046,-2370.33,0.00039452,14]
[377600608,1754448861055,-1918.49,0.00039452,14]
[377600609,1754448861065,-400.0,0.00039452,14]
[377600610,1754448861074,-898.87,0.00039452,14]
[377600611,1754448861083,-1380.46,0.00039452,14]
[377600612,1754448861092,-681.38,0.00039452,14]
[377600613,1754448861101,-1159.52,0.00039452,14]
[377600614,1754448861110,-400.0,0.00039452,14]
[377600615,1754448861120,-2526.57,0.00039452,14]
[377600616,1754448861129,-589.89,0.00039452,14]
[377600617,1754448861138,-481.3,0.00039452,14]
[377600618,1754448861148,-618.59,0.00039452,14]
[377600619,1754448861157,-1943.34,0.00039452,14]
[377600620,1754448861166,-771.1,0.00039452,14]
[377600621,1754448861175,-738.49,0.00039452,14]
[377600622,1754448861185,-1101.66,0.00039452,14]
[377600623,1754448861195,-2119.77,0.00039452,14]
[377600624,1754448861204,-400.0,0.00039452,14]
[377600625,1754448861214,-2486.07,0.00039452,14]
[377600626,1754448861222,-247.88607675,0.00039452,14]
[377600627,1754448861231,-400.0,0.00039452,14]
[377600628,1754448861240,-825.89,0.00039452,14]
[377600629,1754448861249,-400.0,0.00039452,14]
[377600630,1754448861258,-1301.09,0.00039452,14]
[377600631,1754448861268,-400.0,0.00039452,14]
[377600632,1754448861277,-400.0,0.00039452,14]
[377600633,1754448861286,-400.0,0.00039452,14]
[377600634,1754448861295,-400.0,0.00039452,14]
[377600635,1754448861304,-400.0,0.00039452,14]
[377600636,1754448861313,-681.33,0.00039452,14]
[377600637,1754448861322,-424.16,0.00039452,14]
[377600638,1754448861331,-1940.75,0.00039452,14]
[377600639,1754448861341,-400.0,0.00039452,14]
[377600640,1754448861350,-400.0,0.00039452,14]
[377600641,1754448861359,-1594.04,0.00039452,14]
[377600642,1754448861368,-2332.46,0.00039452,14]
[377600643,1754448861377,-1556.67,0.00039452,14]
[377600644,1754448861386,-400.0,0.00039452,14]
[377600645,1754448861395,-2008.42,0.00039452,14]
[377600646,1754448861404,-803.41,0.00039452,14]
[377600647,1754448861414,-1049.45,0.00039452,14]
[377600648,1754448861424,-2287.11,0.00039452,14]
[377600649,1754448861433,-3089.8,0.00039452,14]
[377600650,1754448861443,-2094.9,0.00039452,14]
[377600651,1754448861452,-2284.3,0.00039452,14]
[377600652,1754448861461,-1760.6,0.00039452,14]
[377600653,1754448861471,-590.2,0.00039452,14]
[377600654,1754448861479,-524.39,0.00039452,14]
[377600655,1754448861489,-904.68,0.00039452,14]
[377600656,1754448861498,-538.64,0.00039452,14]
[377600657,1754448861510,-400.0,0.00039452,14]
[377600658,1754448861520,-477.4,0.00039452,14]
[377600659,1754448861529,-400.0,0.00039452,14]
[377600660,1754448861538,-473.05,0.00039452,14]
[377600661,1754448861548,-1562.45,0.00039452,14]
[377600662,1754448861557,-681.47,0.00039452,14]
[377600663,1754448861567,-1343.91,0.00039452,14]
[377600664,1754448861576,-1123.2,0.00039452,14]
[377600665,1754448861585,-402.35,0.00039452,14]
[377600666,1754448861595,-992.23,0.00039452,14]
[377600667,1754448861604,-400.0,0.00039452,14]
[377600668,1754448861614,-531.37570434,0.00039452,14]
[377600669,1754448861623,-905.29,0.00039452,14]
[377600670,1754448861633,-400.0,0.00039452,14]
[377600671,1754448861643,-1620.39,0.00039452,14]
[377600672,1754448861652,-1647.26,0.00039452,14]
[377600673,1754448861662,-2673.63,0.00039452,14]
[377600674,1754448861672,-833.81,0.00039452,14]
[377600675,1754448861681,-423.93,0.00039452,14]
[377600676,1754448861691,-400.0,0.00039452,14]
[377600677,1754448861700,-400.0,0.00039452,14]
[377600678,1754448861709,-659.8,0.00039452,14]
[377600679,1754448861718,-3032.43,0.00039452,14]
[377600680,1754448861727,-2718.79,0.00039452,14]
[377600681,1754448861736,-537.68,0.00039452,14]
[377600682,1754448861746,-400.0,0.00039452,14]
[377600683,1754448861755,-1352.85,0.00039452,14]
[377600684,1754448861765,-652.53,0.00039452,14]
[377600685,1754448861774,-591.66,0.00039452,14]
[377600686,1754448861783,-1194.25,0.00039452,14]
[377600687,1754448861802,-1325.26,0.00039452,14]
[377600688,1754448861811,-687.17,0.00039452,14]
[377600689,1754448861820,-400.0,0.00039452,14]
[377600690,1754448861829,-400.0,0.00039452,14]
[377600691,1754448861839,-2118.84,0.00039452,14]
[377600692,1754448861848,-1193.92,0.00039452,14]
[377600693,1754448861859,-3219.58,0.00039452,14]
[377600694,1754448861868,-401.88592263,0.00039452,14]
[377600695,1754448861878,-2996.94,0.00039452,14]
[377600696,1754448861886,-400.0,0.00039452,14]
[377600697,1754448861895,-400.0,0.00039452,14]
[377600698,1754448861905,-509.96,0.00039452,14]
[377600699,1754448861918,-825.46,0.00039452,14]
[377600700,1754448861928,-400.0,0.00039452,14]
[377600701,1754448861937,-2100.37,0.00039452,14]
[377600702,1754448861946,-2113.04,0.00039452,14]
[377600703,1754448861957,-445.22,0.00039452,14]
[377600704,1754448861966,-400.0,0.00039452,14]
[377600705,1754448861975,-400.0,0.00039452,14]
[377600706,1754448861984,-1931.44,0.00039452,14]
[377600707,1754448861996,-400.0,0.00039452,14]
[377600708,1754448862007,-400.0,0.00039452,14]
[377600709,1754448862016,-590.55,0.00039452,14]
[377600710,1754448862026,-2053.25,0.00039452,14]
[377600711,1754448862035,-1620.16,0.00039452,14]
[377600712,1754448862046,-1273.79,0.00039452,14]
[377600713,1754448862055,-457.71,0.00039452,14]
[377600714,1754448862065,-2044.76,0.00039452,14]
[377600715,1754448862076,-1325.52,0.00039452,14]
[377600716,1754448862085,-400.0,0.00039452,14]
[377600717,1754448862096,-3399.61,0.00039452,14]
[377600718,1754448862106,-1026.17,0.00039452,14]
[377600719,1754448862115,-486.69,0.00039452,14]
[377600720,1754448862123,-2493.6,0.00039452,14]
[377600721,1754448862132,-400.0,0.00039452,14]
[377600722,1754448862141,-723.29,0.00039452,14]
[377600723,1754448862151,-651.88,0.00039452,14]
[377600724,1754448862162,-400.0,0.00039452,14]
[377600725,1754448862170,-903.69,0.00039452,14]
[377600726,1754448862180,-1532.92,0.00039452,14]
[377600727,1754448862190,-672.26,0.00039452,14]
[377600728,1754448862199,-400.0,0.00039452,14]
[377600729,1754448862209,-1382.08,0.00039452,14]
[377600730,1754448862220,-400.0,0.00039452,14]
[377600731,1754448862230,-2614.37,0.00039452,14]
[377600732,1754448862242,-677.89,0.00039452,14]
[377600733,1754448862252,-1383.95,0.00039452,14]
[377600734,1754448862263,-400.0,0.00039452,14]
[377600735,1754448862273,-579.93,0.00039452,14]
[377600736,1754448862285,-400.0,0.00039452,14]
[377600737,1754448862296,-832.0,0.00039452,14]
[377600738,1754448862307,-717.13,0.00039452,14]
[377600739,1754448862318,-400.0,0.00039452,14]
[377600740,1754448862327,-1028.28,0.00039452,14]
[377600741,1754448862336,-2778.5,0.00039452,14]
[377600742,1754448862345,-1985.89,0.00039452,14]
[377600743,1754448862355,-400.0,0.00039452,14]
[377600744,1754448862364,-400.0,0.00039452,14]
[377600745,1754448862373,-2015.29,0.00039452,14]
[377600746,1754448862382,-3708.79,0.00039452,14]
[377600747,1754448862391,-752.93,0.00039452,14]
[377600748,1754448862400,-400.0,0.00039452,14]
[377600749,1754448862410,-2553.57,0.00039452,14]
[377600750,1754448862419,-735.15,0.00039452,14]
[377600751,1754448862429,-400.0,0.00039452,14]
[377600752,1754448862437,-1607.76,0.00039452,14]
[377600753,1754448862447,-400.0,0.00039452,14]
[377600754,1754448862455,-1838.27,0.00039452,14]
[377600755,1754448862464,-2459.31,0.00039452,14]
[377600756,1754448862473,-757.96,0.00039452,14]
[377600757,1754448862482,-400.0,0.00039452,14]
[377600758,1754448862491,-2248.73,0.00039452,14]
[377600759,1754448862500,-865.96,0.00039452,14]
[377600760,1754448862509,-842.75,0.00039452,14]
[377600761,1754448862518,-1141.46,0.00039452,14]
[377600762,1754448862527,-2023.14,0.00039452,14]
[377600763,1754448862536,-1074.3,0.00039452,14]
[377600764,1754448862546,-1094.22,0.00039452,14]
[377600765,1754448862555,-1520.4,0.00039452,14]
[377600766,1754448862564,-1903.84,0.00039452,14]
[377600767,1754448862584,-715.12,0.00039452,14]
[377600768,1754448862594,-400.0,0.00039452,14]
[377600769,1754448862604,-1769.99,0.00039452,14]
[377600770,1754448862615,-3013.96,0.00039452,14]
[377600771,1754448862625,-1189.15,0.00039452,14]
[377600772,1754448862635,-400.0,0.00039452,14]
[377600773,1754448862644,-450.72,0.00039452,14]
[377600774,1754448862654,-1853.29,0.00039452,14]
[377600775,1754448862664,-414.57,0.00039452,14]
[377600776,1754448862674,-2171.13,0.00039452,14]
[377600777,1754448862683,-492.36,0.00039452,14]
[377600778,1754448862693,-2772.54,0.00039452,14]
[377600779,1754448862705,-1432.94,0.00039452,14]
[377600780,1754448862716,-660.15,0.00039452,14]
[377600781,1754448862725,-687.86,0.00039452,14]
[377600782,1754448862736,-1512.02,0.00039452,14]
[377600783,1754448862746,-1752.0,0.00039452,14]
[377600784,1754448862755,-1827.77,0.00039452,14]
[377600785,1754448862765,-2123.08,0.00039452,14]
[377600786,1754448862774,-710.17,0.00039452,14]
[377600787,1754448862785,-400.0,0.00039452,14]
[377600788,1754448862795,-2320.18,0.00039452,14]
[377600789,1754448862805,-541.8,0.00039452,14]
[377600790,1754448862815,-3809.64,0.00039452,14]
[377600791,1754448862825,-1290.75,0.00039452,14]
[377600792,1754448862835,-2988.22,0.00039452,14]
[377600793,1754448862845,-432.19,0.00039452,14]
[377600794,1754448862854,-650.32,0.00039452,14]
[377600795,1754448862863,-2067.35,0.00039452,14]
[377600796,1754448862873,-786.46,0.00039452,14]
[377600797,1754448862882,-1893.56,0.00039452,14]
[377600798,1754448862893,-436.89,0.00039452,14]
[377600799,1754448862903,-1091.29,0.00039452,14]
[377600800,1754448862917,-2121.86,0.00039452,14]
[377600801,1754448862926,-2572.93,0.00039452,14]
[377600802,1754448862935,-403.94,0.00039452,14]
[377600803,1754448862945,-1090.58,0.00039452,14]
[377600804,1754448862957,-2572.33,0.00039452,14]
[377600805,1754448862968,-1310.5,0.00039452,14]
[377600806,1754448863321,-1680.95,0.00039452,14]
[377600807,1754448863333,-1082.92,0.00039452,14]
[377600808,1754448863342,-569.78,0.00039452,14]
[377600809,1754448863352,-456.45,0.00039452,14]
[377600810,1754448863361,-541.54,0.00039452,14]
[377600811,1754448863370,-1882.26,0.00039452,14]
[377600812,1754448863379,-615.57,0.00039452,14]
[377600813,1754448863387,-819.87,0.00039452,14]
[377600814,1754448863397,-2393.94,0.00039452,14]